bitfinex/quotes_BTCUSD_20250727
["timestamp","ask_amount","ask_price","bid_price","bid_amount"]
[1753640852035,0.76821476,119350.0,119340.0,0.76731005]
[1753640852994,0.76721476,119350.0,119340.0,0.76731005]
[1753640853376,0.76921476,119350.0,119340.0,0.77568918]
[1753640853669,0.77021476,119350.0,119340.0,0.78406817]
[1753640853911,0.77021476,119350.0,119340.0,0.79244709]
[1753640853912,0.27234579,119350.0,119340.0,0.79244709]
[1753640854117,0.28072429,119350.0,119340.0,0.79244709]
[1753640854329,0.28910286,119350.0,119340.0,0.79244709]
[1753640855079,0.26396743,119350.0,119340.0,0.79244709]
[1753640855281,0.28072436,119350.0,119340.0,0.79244709]
[1753640856003,0.28072429,119350.0,119340.0,0.79244709]
[1753640856533,0.27234579,119350.0,119340.0,0.79244709]
[1753640856736,0.28072429,119350.0,119340.0,0.79244709]
[1753640857496,0.28910286,119350.0,119340.0,0.79244709]
[1753640858296,0.28072429,119350.0,119340.0,0.79244709]
[1753640858891,0.27234579,119350.0,119340.0,0.79244709]
[1753640859511,0.5942612,119350.0,119340.0,0.79244709]
[1753640859713,0.61101827,119350.0,119340.0,0.78406817]
[1753640860030,0.28910279,119350.0,119340.0,0.79244709]
[1753640860238,0.60263963,119350.0,119340.0,0.79244709]
[1753640861097,0.28072422,119350.0,119340.0,0.79244709]
[1753640861544,0.28910272,119350.0,119340.0,0.79244709]
[1753640862243,0.28072422,119350.0,119340.0,0.79244709]
[1753640862450,0.33649486,119350.0,119340.0,0.79244709]
[1753640862843,0.28072422,119350.0,119340.0,0.79244709]
[1753640863053,0.28072422,119350.0,119340.0,0.79224332]
[1753640863881,0.27234579,119350.0,119340.0,0.79224332]
[1753640864489,0.28072422,119350.0,119340.0,0.79224332]
[1753640865119,0.27234579,119350.0,119340.0,0.79224332]
[1753640865538,0.27234572,119350.0,119340.0,0.79224332]
[1753640865739,0.28072415,119350.0,119340.0,0.79224332]
[1753640865943,0.28072408,119350.0,119340.0,0.79224332]
[1753640866541,0.26396743,119350.0,119340.0,0.79224332]
[1753640866959,0.26396743,119350.0,119340.0,0.79210113]
[1753640867148,0.27234579,119350.0,119340.0,0.79210113]
[1753640868196,0.19121928,119350.0,119340.0,1.15159546]
[1753640868391,0.00301928,119350.0,119340.0,1.18269546]
[1753640868606,0.00301928,119350.0,119340.0,1.43732178]
[1753640868805,0.00301928,119350.0,119340.0,2.35249448]
[1753640869640,1.928e-05,119350.0,119340.0,2.35249448]
[1753640870056,1.928e-05,119350.0,119340.0,2.35449448]
[1753640870480,1.928e-05,119350.0,119340.0,2.40477448]
[1753640870818,1.928e-05,119350.0,119340.0,2.90127948]
[1753640871933,1.928e-05,119350.0,119340.0,2.74284448]
[1753640872143,1.928e-05,119350.0,119340.0,2.82732178]
[1753640872358,1.928e-05,119350.0,119340.0,2.71417178]
[1753640872716,1.928e-05,119350.0,119340.0,2.52632178]
[1753640873157,1.928e-05,119350.0,119340.0,3.11198778]
[1753640873376,1.928e-05,119350.0,119340.0,2.73147678]
[1753640873578,1.928e-05,119350.0,119340.0,2.75663578]
[1753640873944,0.2695,119360.0,119350.0,1.8159488]
[1753640874154,0.26954848,119360.0,119350.0,2.2642134]
[1753640874358,0.26954848,119360.0,119350.0,2.3175994]
[1753640874892,0.26954848,119360.0,119350.0,2.31775832]
[1753640875226,0.26954848,119360.0,119350.0,2.55715432]
[1753640875852,0.26954848,119360.0,119350.0,2.36715432]
[1753640876066,0.26954848,119360.0,119350.0,2.27815532]
[1753640876186,0.26954848,119360.0,119350.0,2.27816532]
[1753640876626,0.26954848,119360.0,119350.0,2.28016532]
[1753640877245,0.26954848,119360.0,119350.0,2.65409132]
[1753640877868,0.26954848,119360.0,119350.0,2.65309132]
[1753640878145,0.26954848,119360.0,119350.0,2.53010432]
[1753640878961,0.26954848,119360.0,119350.0,2.40938932]
[1753640879600,0.26954848,119360.0,119350.0,2.78958032]
[1753640880273,0.26954848,119360.0,119350.0,2.71652532]
[1753640880472,0.26954848,119360.0,119350.0,2.66624532]
[1753640880889,0.26954848,119360.0,119350.0,2.45624532]
[1753640881654,0.26954848,119360.0,119350.0,2.50652532]
[1753640882477,0.26954848,119360.0,119350.0,4.28919132]
[1753640883398,4.848e-05,119360.0,119350.0,4.28919132]
[1753640883567,4.848e-05,119360.0,119350.0,1.43328832]
[1753640883808,4.848e-05,119360.0,119350.0,4.32697432]
[1753640884215,4.848e-05,119360.0,119350.0,4.35212932]
[1753640884772,4.848e-05,119360.0,119350.0,1.45844332]
[1753640885105,4.848e-05,119360.0,119350.0,3.53614532]
[1753640885304,4.848e-05,119360.0,119350.0,3.26906932]
[1753640885719,4.848e-05,119360.0,119350.0,3.76062932]
[1753640886001,4.848e-05,119360.0,119350.0,3.30059832]
[1753640886804,4.848e-05,119360.0,119350.0,3.73373232]
[1753640887194,4.848e-05,119360.0,119350.0,3.65340932]
[1753640887888,4.848e-05,119360.0,119350.0,3.65344932]
[1753640888293,4.848e-05,119360.0,119350.0,3.23961832]
[1753640888796,4.848e-05,119360.0,119350.0,3.90975032]
[1753640889820,4.848e-05,119360.0,119350.0,3.91640932]
[1753640890544,4.848e-05,119360.0,119350.0,3.89986232]
[1753640890779,4.848e-05,119360.0,119350.0,3.44030232]
[1753640891809,4.848e-05,119360.0,119350.0,1.45844332]
[1753640892037,4.848e-05,119360.0,119350.0,3.51660832]
[1753640892355,4.848e-05,119360.0,119350.0,3.5164494]
[1753640892939,4.848e-05,119360.0,119350.0,3.8342564]
[1753640893365,4.848e-05,119360.0,119350.0,3.83444876]
[1753640893562,4.848e-05,119360.0,119350.0,3.80471876]
[1753640894020,4.848e-05,119360.0,119350.0,3.82716176]
[1753640894204,4.848e-05,119360.0,119350.0,3.34929176]
[1753640894478,4.848e-05,119360.0,119350.0,3.37967176]
[1753640894934,4.848e-05,119360.0,119350.0,4.1878155]
[1753640895106,4.848e-05,119360.0,119350.0,4.2314795]
[1753640895312,4.848e-05,119360.0,119350.0,4.2136095]
[1753640895840,4.848e-05,119360.0,119350.0,3.5124975]
[1753640895960,4.848e-05,119360.0,119350.0,4.1185245]
[1753640896385,4.848e-05,119360.0,119350.0,1.4964235]
[1753640896618,4.848e-05,119360.0,119350.0,5.3539425]
[1753640896807,4.848e-05,119360.0,119350.0,5.51178815]
[1753640897020,4.848e-05,119360.0,119350.0,5.64464015]
[1753640897241,4.848e-05,119360.0,119350.0,5.55050415]
[1753640897855,4.848e-05,119360.0,119350.0,1.65071879]
[1753640898068,4.848e-05,119360.0,119350.0,6.62761879]
[1753640898495,7.21e-06,119360.0,119350.0,6.62761879]
[1753640898900,7.21e-06,119360.0,119350.0,5.74490299]
[1753640899107,7.21e-06,119360.0,119350.0,4.77344179]
[1753640899948,7.21e-06,119360.0,119350.0,4.65475479]
[1753640900955,7.21e-06,119360.0,119350.0,5.04647579]
[1753640901167,7.21e-06,119360.0,119350.0,3.46571379]
[1753640901569,7.21e-06,119360.0,119350.0,3.43533379]
[1753640902082,7.21e-06,119360.0,119350.0,4.70762179]
[1753640902540,7.21e-06,119360.0,119350.0,4.18421279]
[1753640902692,7.21e-06,119360.0,119350.0,4.18719279]
[1753640902902,7.21e-06,119360.0,119350.0,4.21757279]
[1753640903209,7.21e-06,119360.0,119350.0,5.82130779]
[1753640903414,7.21e-06,119360.0,119350.0,5.12515379]
[1753640903534,7.21e-06,119360.0,119350.0,6.65071879]
[1753640904245,7.21e-06,119360.0,119350.0,6.36169479]
[1753640904445,7.21e-06,119360.0,119350.0,6.35149879]
[1753640904668,7.21e-06,119360.0,119350.0,5.25399079]
[1753640905078,7.21e-06,119360.0,119350.0,3.59039379]
[1753640906191,7.21e-06,119360.0,119350.0,5.75109279]
[1753640907207,7.21e-06,119360.0,119350.0,6.48504879]
[1753640907442,7.21e-06,119360.0,119350.0,6.27504879]
[1753640907644,7.21e-06,119360.0,119350.0,6.19143479]
[1753640908028,7.21e-06,119360.0,119350.0,6.27633879]
[1753640908261,7.21e-06,119360.0,119350.0,5.49952279]
[1753640908462,7.21e-06,119360.0,119350.0,5.36509179]
[1753640908665,0.06199,119370.0,119360.0,3.33554831]
[1753640908871,0.06397,119370.0,119360.0,3.66222561]
[1753640909047,0.06397,119370.0,119360.0,1.23130861]
[1753640909254,0.06397,119370.0,119360.0,3.66222561]
[1753640909463,0.06397,119370.0,119360.0,3.64187461]
[1753640909881,0.06397,119370.0,119360.0,3.64206697]
[1753640910087,0.06397,119370.0,119360.0,2.72033597]
[1753640910318,0.06397,119370.0,119360.0,3.41036997]
[1753640911153,0.06397,119370.0,119360.0,2.92458597]
[1753640911378,0.06397,119370.0,119360.0,2.63220697]
[1753640912164,0.06397,119370.0,119360.0,1.37531061]
[1753640912377,0.06397,119370.0,119360.0,2.77918161]
[1753640913186,0.06397,119370.0,119360.0,3.52286461]
[1753640914312,0.06397,119370.0,119360.0,2.48050581]
[1753640914530,0.06397,119370.0,119360.0,2.75901061]
[1753640915209,0.09597,119370.0,119360.0,2.75901061]
[1753640915445,0.09597,119370.0,119360.0,3.62624461]
[1753640915875,0.06397,119370.0,119360.0,3.54612161]
[1753640916468,0.06397,119370.0,119360.0,4.34724361]
[1753640916981,0.06397,119370.0,119360.0,3.63978961]
[1753640917425,0.06397,119370.0,119360.0,4.16045461]
[1753640917629,0.06397,119370.0,119360.0,4.12567361]
[1753640918037,0.06397,119370.0,119360.0,4.10000261]
[1753640918494,0.06397,119370.0,119360.0,4.44108261]
[1753640918948,0.06397,119370.0,119360.0,4.48130706]
[1753640919182,0.06397,119370.0,119360.0,4.43634206]
[1753640919406,0.06397,119370.0,119360.0,1.41553506]
[1753640919639,0.06397,119370.0,119360.0,4.44649806]
[1753640919876,0.06397,119370.0,119360.0,3.81881906]
[1753640920325,0.06397,119370.0,119360.0,3.86909906]
[1753640920794,0.06397,119370.0,119360.0,4.28439306]
[1753640921791,0.06397,119370.0,119360.0,4.45742206]
[1753640922388,0.06397,119370.0,119360.0,4.42105806]
[1753640922802,0.06397,119370.0,119360.0,4.49345306]
[1753640922996,0.06397,119370.0,119360.0,4.05233206]
[1753640923203,0.06397,119370.0,119360.0,2.73345506]
[1753640923405,0.09667,119370.0,119360.0,2.73345506]
[1753640923722,0.09667,119370.0,119360.0,3.57231906]
[1753640924255,0.09667,119370.0,119360.0,3.46590406]
[1753640924460,0.08661191,119370.0,119360.0,3.44340406]
[1753640924675,0.08661191,119370.0,119360.0,2.81106706]
[1753640924846,0.08661191,119370.0,119360.0,2.80962906]
[1753640925045,0.08661191,119370.0,119360.0,2.44774681]
[1753640925251,0.08661191,119370.0,119360.0,2.80962906]
[1753640925847,0.08661191,119370.0,119360.0,3.67110606]
[1753640926043,0.08661191,119370.0,119360.0,3.62419606]
[1753640926926,0.08661191,119370.0,119360.0,3.63522006]
[1753640927665,0.08661191,119370.0,119360.0,3.48974406]
[1753640927908,0.08661191,119370.0,119360.0,2.84352406]
[1753640928299,0.08661191,119370.0,119360.0,2.84668406]
[1753640928858,0.08661191,119370.0,119360.0,1.46897506]
[1753640929059,0.08661191,119370.0,119360.0,3.83938406]
[1753640929823,0.08661191,119370.0,119360.0,3.95106006]
[1753640930047,0.08661191,119370.0,119360.0,3.74106006]
[1753640930243,0.08661191,119370.0,119360.0,1.46897506]
[1753640930449,0.08661191,119370.0,119360.0,3.73779306]
[1753640930683,0.08661191,119370.0,119360.0,2.97324006]
[1753640930904,0.08661191,119370.0,119360.0,3.86755406]
[1753640931112,0.08661191,119370.0,119360.0,3.18860806]
[1753640931481,0.08661191,119370.0,119360.0,2.82672581]
[1753640931686,0.43655,119380.0,119370.0,1.34094539]
[1753640931881,0.46933,119380.0,119370.0,2.03131494]
[1753640932275,0.47237,119380.0,119370.0,1.96585594]
[1753640932631,0.39737,119380.0,119370.0,1.96585594]
[1753640932847,0.47337,119380.0,119370.0,1.96585594]
[1753640933046,0.47537,119380.0,119370.0,1.9660483]
[1753640933251,0.47537,119380.0,119370.0,1.9006243]
[1753640933487,0.47537,119380.0,119370.0,1.33908205]
[1753640933668,0.47537,119380.0,119370.0,1.6160293]
[1753640934829,0.47537,119380.0,119370.0,1.5889143]
[1753640935089,0.47537,119380.0,119370.0,1.5622143]
[1753640935287,0.47537,119380.0,119370.0,1.20033205]
[1753640935488,0.47537,119380.0,119370.0,1.19977249]
[1753640935657,0.47537,119380.0,119370.0,1.56165474]
[1753640936865,0.47537,119380.0,119370.0,1.06773249]
[1753640937178,0.83725225,119380.0,119370.0,0.63423649]
[1753640937363,0.83725225,119380.0,119370.0,0.76623649]
[1753640938615,0.89562823,119380.0,119370.0,0.74874747]
[1753640939044,0.88725225,119380.0,119370.0,0.74874747]
[1753640942621,0.25587,119380.0,119370.0,0.74874747]
[1753640942907,0.61775225,119380.0,119370.0,0.74874747]
[1753640944438,0.61775225,119380.0,119370.0,0.60059325]
[1753640944439,0.99638667,119380.0,119370.0,0.60059325]
[1753640944650,1.17229566,119380.0,119370.0,0.74089049]
[1753640944904,0.80203722,119380.0,119370.0,0.74089049]
[1753640945125,1.16391947,119380.0,119370.0,0.74926766]
[1753640945332,0.80203722,119380.0,119370.0,0.74089049]
[1753640945542,0.80203722,119380.0,119370.0,0.73251325]
[1753640945685,1.15554321,119380.0,119370.0,0.34019236]
[1753640946099,1.15554321,119380.0,119370.0,0.47211236]
[1753640946455,1.15454321,119380.0,119370.0,0.47211236]
[1753640946690,1.15654321,119380.0,119370.0,0.47211236]
[1753640946891,1.15654321,119380.0,119370.0,0.63965864]
[1753640947128,1.15454321,119380.0,119370.0,0.63965864]
[1753640947335,1.15654321,119380.0,119370.0,0.63965864]
[1753640947540,1.15454321,119380.0,119370.0,0.63965864]
[1753640947748,0.79266096,119380.0,119370.0,0.50773864]
[1753640947958,0.79266096,119380.0,119370.0,0.64165864]
[1753640948160,0.79266096,119380.0,119370.0,0.65003588]
[1753640948365,0.79066096,119380.0,119370.0,0.65003588]
[1753640948572,0.78228449,119380.0,119370.0,0.65103588]
[1753640949189,0.78228449,119380.0,119370.0,0.64265864]
[1753640949598,0.78228449,119380.0,119370.0,0.65103595]
[1753640949988,0.78228449,119380.0,119370.0,0.65941319]
[1753640950954,0.78228449,119380.0,119370.0,0.65103595]
[1753640954101,0.42040224,119380.0,119370.0,0.65941319]
[1753640954314,0.78228449,119380.0,119370.0,0.66779036]
[1753640955179,0.78228449,119380.0,119370.0,0.65941319]
[1753640955881,0.78228449,119380.0,119370.0,0.66779036]
[1753640956638,0.42040224,119380.0,119370.0,0.65941319]
[1753640956861,0.78228449,119380.0,119370.0,0.65941319]
[1753640957068,0.26962301,119380.0,119370.0,0.67616718]
[1753640957224,0.27799927,119380.0,119370.0,0.684544]
[1753640957428,0.63988152,119380.0,119370.0,0.684544]
[1753640957630,0.27799927,119380.0,119370.0,0.684544]
[1753640957876,0.19785,119380.0,119370.0,0.7742313]
[1753640958098,0.1558,119380.0,119370.0,1.29939355]
[1753640958322,0.1558,119380.0,119370.0,0.8075113]
[1753640958524,0.1558,119380.0,119370.0,0.9275113]
[1753640958990,0.1058,119380.0,119370.0,0.94496032]
[1753640959200,0.125,119380.0,119370.0,1.33794257]
[1753640959416,0.125,119380.0,119370.0,1.21794257]
[1753640959670,0.125,119380.0,119370.0,0.82496032]
[1753640959875,0.125,119380.0,119370.0,0.79168032]
[1753640960032,0.125,119380.0,119370.0,0.79068032]
[1753640960252,0.51888225,119380.0,119370.0,0.78868032]
[1753640960453,0.52088225,119380.0,119370.0,0.78868032]
[1753640960659,0.52288225,119380.0,119370.0,0.78868032]
[1753640960862,0.161,119380.0,119370.0,0.78868032]
[1753640961089,0.25695605,119380.0,119370.0,0.78868032]
[1753640961827,0.25695605,119380.0,119370.0,0.78856032]
[1753640961828,0.58706615,119380.0,119370.0,0.78856032]
[1753640962214,0.57868989,119380.0,119370.0,0.78856032]
[1753640962383,0.58706615,119380.0,119370.0,0.78856032]
[1753640962595,0.58706608,119380.0,119370.0,0.78856032]
[1753640962840,0.57031384,119380.0,119370.0,0.78856032]
[1753640963079,0.51808,119380.0,119370.0,0.78856032]
[1753640963748,0.48528,119380.0,119370.0,0.78856032]
[1753640965675,0.49365598,119380.0,119370.0,0.78856032]
[1753640965891,0.48528,119380.0,119370.0,0.78856032]
[1753640966139,0.49365598,119380.0,119370.0,0.78856032]
[1753640966921,0.5351321,119380.0,119370.0,0.78856032]
[1753640967126,0.87858867,119380.0,119370.0,0.78335032]
[1753640968279,1.03774493,119380.0,119370.0,0.61734759]
[1753640968491,1.02936881,119380.0,119370.0,0.74073049]
[1753640968696,1.02099255,119380.0,119370.0,0.74073049]
[1753640969050,0.74311608,119380.0,119370.0,0.55642966]
[1753640969454,0.74311608,119380.0,119370.0,0.64787595]
[1753640969831,0.74311608,119380.0,119370.0,0.66463036]
[1753640970250,0.42138224,119380.0,119370.0,0.66463036]
[1753640970468,0.74311608,119380.0,119370.0,0.67300739]
[1753640970703,0.74311608,119380.0,119370.0,0.66463036]
[1753640970918,0.42138224,119380.0,119370.0,0.67300739]
[1753640971150,0.74311608,119380.0,119370.0,0.67300739]
[1753640972029,0.74311608,119380.0,119370.0,0.66463036]
[1753640972684,0.74311608,119380.0,119370.0,0.67300746]
[1753640973078,0.74311608,119380.0,119370.0,0.68138442]
[1753640973327,0.74311608,119380.0,119370.0,0.67300746]
[1753640975137,0.74311608,119380.0,119370.0,0.65625319]
[1753640975393,0.74311608,119380.0,119370.0,0.64787595]
[1753640976355,0.74311608,119380.0,119370.0,0.47195236]
[1753640977616,0.74311608,119380.0,119370.0,0.63949864]
[1753640977802,0.74311608,119380.0,119370.0,0.67301547]
[1753640978285,0.74311608,119380.0,119370.0,0.68139257]
[1753640979055,0.74311608,119380.0,119370.0,0.67301561]
[1753640979911,0.74311608,119380.0,119370.0,0.49709202]
[1753640980116,0.74311608,119380.0,119370.0,0.6646383]
[1753640981299,0.74311608,119380.0,119370.0,0.6813925]
[1753640981575,0.74311608,119380.0,119370.0,0.67301547]
[1753640981761,0.74311608,119380.0,119370.0,0.68139257]
[1753640982587,0.74311608,119380.0,119370.0,0.68120021]
[1753640983243,0.74311608,119380.0,119370.0,0.67282325]
[1753640983654,0.74311608,119380.0,119370.0,0.49711709]
[1753640985844,0.74311608,119380.0,119370.0,0.36535709]
[1753640986059,0.74311608,119380.0,119370.0,0.49699709]
[1753640987432,0.42138224,119380.0,119370.0,0.49699709]
[1753640987649,0.74311608,119380.0,119370.0,0.49699709]
[1753640992093,0.99311608,119380.0,119370.0,0.49699709]
[1753640992937,0.78347891,119380.0,119370.0,0.49699709]
[1753640993078,0.78347891,119380.0,119370.0,0.36535709]
[1753640993298,0.78347891,119380.0,119370.0,0.49695709]
[1753640993299,1.14557558,119380.0,119370.0,0.49695709]
[1753640993943,1.39557558,119380.0,119370.0,0.49695709]
[1753640995443,1.39557558,119380.0,119370.0,0.49691709]
[1753640996824,1.03347891,119380.0,119370.0,0.49691709]
[1753640997033,0.78347891,119380.0,119370.0,0.49691709]
[1753641000034,1.03347891,119380.0,119370.0,0.49691709]
[1753641001150,0.78347891,119380.0,119370.0,0.49691709]
[1753641001798,0.78347891,119380.0,119370.0,0.66446337]
[1753641002272,0.78347891,119380.0,119370.0,0.49691709]
[1753641003338,0.78347891,119380.0,119370.0,0.66446337]
[1753641004001,0.78347891,119380.0,119370.0,0.67284068]
[1753641005030,1.14557558,119380.0,119370.0,0.49691709]
[1753641005906,1.03347891,119380.0,119370.0,0.49691709]
[1753641006134,1.39557558,119380.0,119370.0,0.49691709]
[1753641008495,1.39557558,119380.0,119370.0,0.15687709]
[1753641008753,1.39557558,119380.0,119370.0,0.13173743]
[1753641009142,1.39557558,119380.0,119370.0,0.00021743]
[1753641009391,1.39557558,119380.0,119370.0,0.13169743]
[1753641009589,1.39357558,119380.0,119370.0,0.13169743]
[1753641010622,1.39157558,119380.0,119370.0,0.13169743]
[1753641010960,1.02947891,119380.0,119370.0,0.13169743]
[1753641011590,0.66738224,119380.0,119370.0,0.13369743]
[1753641011771,1.02947891,119380.0,119370.0,0.13369743]
[1753641011991,1.02947891,119380.0,119370.0,0.13469743]
[1753641012200,0.66738224,119380.0,119370.0,0.30224371]
[1753641012419,0.77947891,119380.0,119370.0,0.13469743]
[1753641013062,0.66738224,119380.0,119370.0,0.13469743]
[1753641013275,1.02947891,119380.0,119370.0,0.13469743]
[1753641017053,0.77947891,119380.0,119370.0,0.13469743]
[1753641017512,0.77947891,119380.0,119370.0,0.13671743]
[1753641018118,0.41738224,119380.0,119370.0,0.13671743]
[1753641018313,0.77947891,119380.0,119370.0,0.13671743]
[1753641019521,0.41738224,119380.0,119370.0,0.13469743]
[1753641019724,0.77947891,119380.0,119370.0,0.13469743]
[1753641019934,1.02947891,119380.0,119370.0,0.13469743]
[1753641021064,0.77947891,119380.0,119370.0,0.13469743]
[1753641021286,0.41738224,119380.0,119370.0,0.13469743]
[1753641021499,0.77947891,119380.0,119370.0,0.13469743]
[1753641022796,0.77947891,119380.0,119370.0,0.30224371]
[1753641023016,0.77947891,119380.0,119370.0,0.31062102]
[1753641024353,0.41738224,119380.0,119370.0,0.30224371]
[1753641024558,0.77947891,119380.0,119370.0,0.31062102]
[1753641024767,0.41738224,119380.0,119370.0,0.31062102]
[1753641024988,0.77947891,119380.0,119370.0,0.30224371]
[1753641025195,0.77947891,119380.0,119370.0,0.31062102]
[1753641025617,0.77947891,119380.0,119370.0,0.31899826]
[1753641025847,0.24488,119380.0,119370.0,0.32106826]
[1753641026064,0.52060171,119380.0,119370.0,0.37214225]
[1753641026275,0.52060171,119380.0,119370.0,0.38051907]
[1753641026490,0.52897825,119380.0,119370.0,0.34084225]
[1753641026673,0.52897825,119380.0,119370.0,0.34921914]
[1753641026674,0.58550825,119380.0,119370.0,0.34921914]
[1753641026909,0.53550825,119380.0,119370.0,0.34921914]
[1753641027115,0.58550825,119380.0,119370.0,0.34084225]
[1753641027329,0.76908832,119380.0,119370.0,0.32408826]
[1753641027783,0.76908832,119380.0,119370.0,0.34084253]
[1753641027998,0.76908832,119380.0,119370.0,0.33246543]
[1753641028210,0.76282192,119380.0,119370.0,0.30431371]
[1753641028425,0.76282192,119380.0,119370.0,0.31269102]
[1753641028904,0.76282192,119380.0,119370.0,0.32106826]
[1753641029397,0.40072525,119380.0,119370.0,0.32106826]
[1753641029605,0.76282192,119380.0,119370.0,0.31269102]
[1753641029827,0.76282192,119380.0,119370.0,0.32106819]
[1753641030035,0.5624894,119380.0,119370.0,0.34084218]
[1753641030236,0.14828231,119380.0,119370.0,0.349219]
[1753641030453,0.56875545,119380.0,119370.0,0.34084218]
[1753641030654,0.56875545,119380.0,119370.0,0.349219]
[1753641030865,0.57713206,119380.0,119370.0,0.34084225]
[1753641031071,0.38256763,119380.0,119370.0,0.32408819]
[1753641031280,0.7446643,119380.0,119370.0,0.33246529]
[1753641031707,0.38256763,119380.0,119370.0,0.33246529]
[1753641031908,0.7446643,119380.0,119370.0,0.33246529]
[1753641032662,0.38256763,119380.0,119370.0,0.33246529]
[1753641032880,0.7446643,119380.0,119370.0,0.34084232]
[1753641033098,0.7446643,119380.0,119370.0,0.34921928]
[1753641033542,0.57713206,119380.0,119370.0,0.34921928]
[1753641033763,0.57713206,119380.0,119370.0,0.34084232]
[1753641034194,0.7760643,119380.0,119370.0,0.34084232]
[1753641034383,0.7760643,119380.0,119370.0,0.32408819]
[1753641034591,0.7781743,119380.0,119370.0,0.32106819]
[1753641034804,0.76979825,119380.0,119370.0,0.32106819]
[1753641035015,0.76979825,119380.0,119370.0,0.31269102]
[1753641035275,0.76979825,119380.0,119370.0,0.32106826]
[1753641035459,0.77285825,119380.0,119370.0,0.31269102]
[1753641035932,0.77285825,119380.0,119370.0,0.32106826]
[1753641036146,0.77285825,119380.0,119370.0,0.31269102]
[1753641036581,0.76448199,119380.0,119370.0,0.30431371]
[1753641036801,0.79768199,119380.0,119370.0,0.31269102]
[1753641037564,0.79768199,119380.0,119370.0,0.32106826]
[1753641037764,0.43558532,119380.0,119370.0,0.32944543]
[1753641038123,0.79768199,119380.0,119370.0,0.32944543]
[1753641038560,0.76142199,119380.0,119370.0,0.33782253]
[1753641039206,0.76142199,119380.0,119370.0,0.34619956]
[1753641039408,0.76142199,119380.0,119370.0,0.32944543]
[1753641040033,0.76142199,119380.0,119370.0,0.32106826]
[1753641040866,0.79768199,119380.0,119370.0,0.30431371]
[1753641041302,0.79768199,119380.0,119370.0,0.31269102]
[1753641041755,0.79768199,119380.0,119370.0,0.30431371]
[1753641041966,0.79768199,119380.0,119370.0,0.31269102]
[1753641042181,0.79768199,119380.0,119370.0,0.32106826]
[1753641042392,0.79768199,119380.0,119370.0,0.32944543]
[1753641042619,0.79768199,119380.0,119370.0,0.31269102]
[1753641043082,0.43558532,119380.0,119370.0,0.31269102]
[1753641043290,0.79768199,119380.0,119370.0,0.31269102]
[1753641044116,0.79768199,119380.0,119370.0,0.33785095]
[1753641044344,0.79768199,119380.0,119370.0,0.32947364]
[1753641044557,0.79768199,119380.0,119370.0,0.33785095]
[1753641045336,0.79768199,119380.0,119370.0,0.32947364]
[1753641045485,0.78930552,119380.0,119370.0,0.32947364]
[1753641045690,0.78930552,119380.0,119370.0,0.33785095]
[1753641046015,0.78930552,119380.0,119370.0,0.32947364]
[1753641046247,0.78092891,119380.0,119370.0,0.15985736]
[1753641046452,0.78092891,119380.0,119370.0,0.02837736]
[1753641046634,1.14302558,119380.0,119370.0,0.15961736]
[1753641047795,1.14302558,119380.0,119370.0,0.13445743]
[1753641047997,1.27422558,119380.0,119370.0,0.13441743]
[1753641049008,1.52422558,119380.0,119370.0,0.13441743]
[1753641049222,1.52422558,119380.0,119370.0,0.00321743]
[1753641049442,1.52422558,119380.0,119370.0,0.13441743]
[1753641049859,1.52422558,119380.0,119370.0,0.00321743]
[1753641050065,1.52422558,119380.0,119370.0,0.00221743]
[1753641050241,1.52422558,119380.0,119370.0,0.00021743]
[1753641050444,1.52422558,119380.0,119370.0,0.00221743]
[1753641050643,1.52422558,119380.0,119370.0,0.00421743]
[1753641067365,1.60870288,119380.0,119370.0,0.00421743]
[1753641072586,0.52459842,119360.0,119350.0,0.02814406]
[1753641072822,0.88669509,119360.0,119350.0,0.03015406]
[1753641072958,0.94162509,119360.0,119350.0,0.03015406]
[1753641073185,0.94162509,119360.0,119350.0,0.19772842]
[1753641073393,0.99162509,119360.0,119350.0,0.03015406]
[1753641074121,0.99162509,119360.0,119350.0,0.03115406]
[1753641074744,0.62952842,119360.0,119350.0,0.03115406]
[1753641074968,0.99162509,119360.0,119350.0,0.03115406]
[1753641075374,1.19054509,119360.0,119350.0,0.00301]
[1753641076632,1.19054509,119360.0,119350.0,0.00201]
[1753641077001,1.19154509,119360.0,119350.0,0.00201]
[1753641077561,1.19054509,119360.0,119350.0,0.00201]
[1753641077822,1.19930649,119360.0,119350.0,0.00401]
[1753641078522,0.93402392,119360.0,119350.0,0.00401]
[1753641078941,1.29612059,119360.0,119350.0,0.002]
[1753641080005,1.54612059,119360.0,119350.0,0.002]
[1753641082896,1.63059789,119360.0,119350.0,0.002]
[1753641084658,1.63059789,119360.0,119330.0,0.13415]
[1753641084659,0.18434673,119340.0,119330.0,0.13415]
[1753641084897,0.90854007,119340.0,119330.0,0.13620848]
[1753641085179,1.03816007,119340.0,119330.0,0.13620848]
[1753641087535,1.03816007,119340.0,119330.0,0.00520848]
[1753641092284,1.04020007,119340.0,119330.0,0.00520848]
[1753641093906,1.04020007,119340.0,119330.0,0.00205848]
[1753641094695,1.09336007,119340.0,119330.0,0.00205848]
[1753641094909,1.12446007,119340.0,119330.0,4.848e-05]
[1753641095122,1.15576007,119340.0,119330.0,4.848e-05]
[1753641095580,1.28664007,119340.0,119330.0,4.848e-05]
[1753641096021,1.53664007,119340.0,119330.0,4.848e-05]
[1753641098036,1.50534007,119340.0,119330.0,4.848e-05]
[1753641098248,1.50534007,119340.0,119330.0,0.00204848]
[1753641098964,1.53534007,119340.0,119330.0,0.00204848]
[1753641099815,1.53534007,119340.0,119330.0,0.00304848]
[1753641101605,1.50534007,119340.0,119330.0,0.00304848]
[1753641102663,0.78114673,119340.0,119330.0,0.00304848]
[1753641102879,1.50534007,119340.0,119330.0,0.00304848]
[1753641110183,1.53804007,119340.0,119330.0,0.00304848]
[1753641113038,1.62251737,119340.0,119330.0,0.00304848]
[1753641114119,1.62251737,119340.0,119330.0,0.00104848]
[1753641114554,1.62251737,119340.0,119330.0,0.00204848]
[1753641114955,1.62251737,119340.0,119330.0,0.00104848]
[1753641116952,1.62251737,119340.0,119310.0,0.56159082]
[1753641116953,0.45282916,119320.0,119310.0,0.72922121]
[1753641117165,0.81492583,119320.0,119310.0,0.73134121]
[1753641117392,0.88992583,119320.0,119310.0,0.60054121]
[1753641117617,0.94246583,119320.0,119310.0,0.43291082]
[1753641118070,0.94246583,119320.0,119310.0,0.60054136]
[1753641118261,0.99823647,119320.0,119310.0,0.60054136]
[1753641118410,0.94246583,119320.0,119310.0,0.60054136]
[1753641118616,0.94246583,119320.0,119310.0,0.60892288]
[1753641119028,0.94246583,119320.0,119310.0,0.60054136]
[1753641119669,0.94246583,119320.0,119310.0,0.60892288]
[1753641119875,0.94246583,119320.0,119310.0,0.61730433]
[1753641120072,0.94246583,119320.0,119310.0,0.60892288]
[1753641120270,0.58036916,119320.0,119310.0,0.61730433]
[1753641120557,0.94246583,119320.0,119310.0,0.61730433]
[1753641120774,0.41275267,119320.0,119310.0,0.62568564]
[1753641120956,0.77484934,119320.0,119310.0,0.62568564]
[1753641121179,0.73069016,119320.0,119310.0,0.62568564]
[1753641121389,0.34345152,119320.0,119310.0,0.71016301]
[1753641121595,0.39345152,119320.0,119310.0,1.11050195]
[1753641122640,0.39345152,119320.0,119310.0,0.74840528]